Cogmind - Beta 10.2 @@@ ROGUE MODE // 2021.10.04 @ 21:01:28 Player: tangiers Result: Self-destructed Performance ------------- Evolutions (4) 2000 Regions Visited (12) 2400 Robots Destroyed (140) 700 Value Destroyed (3623) 3623 Prototype IDs (51) 1020 Alien Tech Used (0) 0 Bonus (593) 593 TOTAL SCORE: 10336 Bonus ------- High Alert Combat Kills 69 Follower Combat Kills 138 Aligned with FarCom 300 Met Data Miner 300 Friendly Fire -214 Cogmind --------- Core Integrity 850/850 Matter 220/300 Energy 492/500 System Corruption 1% Temperature Cool (80) Movement Hovering (42) Location -6/Factory Parts ------- > --- POWER (1) -------- F-cell Engine > --- PROPULSION (6) --- Aerolev Unit Aerolev Unit Aerolev Unit > --- UTILITY (6) ------ Advanced Heat Sink Lightpack 2.0 Improved Sensor Array Advanced Signal Interpreter Improved Propulsion Shielding > --- WEAPON (2) ------- Guided Plasma Cannon Makeshift Sword > --- INVENTORY (24) --- Reinforced Deuterium Engine Humpback Advanced Signal Interpreter Improved Salvage Targeting Computer Improved Salvage Targeting Computer Improved Utility Shielding Improved Medium Armor Plating Improved Medium Armor Plating Layered Medium Armor Plating Medium Reactive Plating Skeleton Box Long-range Tractor Beam Cooled Plasma Cannon Flak Gun Heavy Machine Gun Heavy Machine Gun Heavy Machine Gun Heavy Machine Gun Heavy Machine Gun Heavy Machine Gun Advanced EMP Blaster Improved Proton Missile Launcher Plasma Cutter Peak State ------------ > --- POWER ------------ Micro Nuclear Core > --- PROPULSION ------- Aerolev Unit Aerolev Unit Aerolev Unit Aerolev Unit Aerolev Unit Aerolev Unit > --- UTILITY ---------- Lightpack 2.0 Experimental Sensor Array Advanced Signal Interpreter > --- WEAPON ----------- Guided Plasma Cannon Heavy Mace > --- INVENTORY -------- Armored Treads Advanced Treads Advanced Treads Advanced Treads Medium Treads Advanced Sensor Array Improved Salvage Targeting Computer Improved Salvage Targeting Computer Advanced Target Analyzer Improved Propulsion Shielding Improved Medium Armor Plating Improved Medium Armor Plating Medium Reactive Plating Medium Reactive Plating Skeleton Box Long-range Tractor Beam Cooled Plasma Cannon Gauss Rifle Gauss Rifle Gauss Rifle Gauss Rifle Flak Gun Advanced EMP Blaster Plasma Cutter [Rating: 77] Favorites ----------- Power Ion Engine Engine Ion Engine Power Core Micro Nuclear Core Propulsion Improved Treads Treads Improved Treads Leg Carbon-fiber Leg Wheel Wheel Hover Unit Aerolev Unit Flight Unit Improved VTOL Module Utility Layered Light Armor Plating Device Experimental Sensor Array Storage Humpback Processor Advanced Signal Interpreter Protection Layered Light Armor Plating Weapon Gauss Rifle Energy Gun Particle Gun Energy Cannon Guided Plasma Cannon Ballistic Gun Gauss Rifle Launcher Grenade Launcher Special Weapon Plasma Cutter Impact Weapon Heavy Mace Slashing Weapon Makeshift Sword Build | -11 -10 -10 -10 -9 -8 -8 -7 -7 -7 -7 -6 -6 ------- Run | Scr Mat Min Exi Min Mat Sto Fac Low Low Dat Pro Fac Slots Evolved 8 | . . . . . 4 . 2 . . . . 2 Power . | . . . . . . . . . . . . . Propulsion 4 | . . . . . 2 . 2 . . . . . Utility 4 | . . . . . 2 . . . . . . 2 Weapon . | . . . . . . . . . . . . . Parts Attached 157 | 2 29 6 5 4 27 32 25 1 9 1 10 6 Power 12 | . 2 . 1 . 2 1 3 . 1 . 1 1 Engine 9 | . 2 . 1 . 2 1 . . 1 . 1 1 Core 3 | . . . . . . . 3 . . . . . Reactor . | . . . . . . . . . . . . . Propulsion 35 | 2 7 . . . 6 9 10 . 1 . . . Treads 19 | 1 5 . . . 5 7 . . 1 . . . Leg 1 | . . . . . 1 . . . . . . . Wheel 3 | 1 2 . . . . . . . . . . . Hover 10 | . . . . . . . 10 . . . . . Flight 2 | . . . . . . 2 . . . . . . Utility 40 | . 7 1 2 . 8 5 6 1 4 . 2 4 Device 9 | . 2 . . . 1 . 1 1 2 . 1 1 Storage 7 | . 4 . 1 . . 1 1 . . . . . Processor 2 | . . . . . 1 . 1 . . . . . Hackware . | . . . . . . . . . . . . . Protection 22 | . 1 1 1 . 6 4 3 . 2 . 1 3 Artifact . | . . . . . . . . . . . . . Weapon 70 | . 13 5 2 4 11 17 6 . 3 1 7 1 Energy Gun 16 | . 7 1 . 3 . 5 . . . . . . Energy Cannon 17 | . 1 2 1 1 5 3 3 . . . . 1 Ballistic Gun 20 | . 3 . . . 6 7 1 . 1 . 2 . Ballistic Cannon . | . . . . . . . . . . . . . Launcher 9 | . 1 2 1 . . 1 . . 1 1 2 . Special Weapon 2 | . 1 . . . . 1 . . . . . . Impact Weapon 2 | . . . . . . . 2 . . . . . Slashing Weapon 4 | . . . . . . . . . 1 . 3 . Piercing Weapon . | . . . . . . . . . . . . . Special Melee Weapon . | . . . . . . . . . . . . . Unidentified Prototypes 8 | . . . . . 1 5 1 . . . . 1 Parts Lost 13 | . 3 2 . 1 1 1 . . 2 . 3 . Power . | . . . . . . . . . . . . . Propulsion 4 | . . . . . 1 . . . 1 . 2 . Utility 2 | . . 1 . . . . . . . . 1 . Weapon 7 | . 3 1 . 1 . 1 . . 1 . . . Highest Loss Streak 2 | . 2 1 . 1 1 1 . . 1 . 2 . Average Slot Usage (%) 89 | . 99 98 93 85 88 89 91 92 83 80 78 73 Engine 9 | . 14 14 14 14 9 9 2 . 1 7 7 6 Treads 26 | . 22 28 28 28 34 34 . . . . . . Hover 6 | . . . . . . . 45 46 38 38 32 20 Device 1 | . 7 . . . . . 3 7 2 7 5 7 Storage 10 | . 14 14 13 14 9 9 7 7 7 7 7 6 Processor 1 | . . . . . . . 6 7 7 7 7 6 Protection 12 | . 5 14 8 . 17 18 3 . 4 . 1 11 Energy Gun 4 | . 18 11 . 14 . 3 . . . . . . Energy Cannon 4 | . 8 11 14 13 . . 6 7 . . . 1 Ballistic Gun 9 | . 1 . . . 16 14 1 . . . 3 . Launcher 1 | . . 3 13 . . . . . 6 3 4 4 Naked Turns . | . . . . . . . . . . . . . Heaviest Build 119 | 10 46 47 98 98 115 119 44 44 40 29 29 35 Greatest Support 92 | 20 46 46 46 46 92 92 66 44 55 33 55 33 Greatest Overweight (x) 4 | . 4 1 2 2 2 2 1 . . . . 1 Average Overweight (x) . | . 1 . 1 1 1 1 . . . . . . Largest Inventory Capacity 44 | 6 16 12 24 24 24 44 44 24 24 24 24 24 Average Capacity 21 | 6 11 12 16 24 24 24 24 24 24 24 24 24 Most Carried 24 | 6 12 12 19 23 24 24 24 24 24 24 24 24 Average Carried 20 | 4 10 11 13 18 23 23 23 23 23 24 23 23 Final Capacity 24 | 6 12 12 24 24 24 24 24 24 24 24 24 24 Final Carried 24 | 4 12 11 19 20 24 24 24 24 24 24 24 24 Class Distribution -------------------- 81% | Hauler-Mutant 18% | Mutant Dominant Class ---------------- Mutant | -10/Materials Mutant | -10/Mines Mutant | -10/Exiles Hauler-Mutant | -9/Mines Hauler-Mutant | -8/Materials Hauler-Mutant | -8/Storage Hauler-Mutant | -7/Factory Hauler-Mutant | -7/Lower Caves Hauler-Mutant | -7/Lower Caves Hauler-Mutant | -7/Data Miner Hauler-Mutant | -6/Proximity Caves Hauler-Mutant | -6/Factory Resources | -11 -10 -10 -10 -9 -8 -8 -7 -7 -7 -7 -6 -6 ----------- Run | Scr Mat Min Exi Min Mat Sto Fac Low Low Dat Pro Fac Matter Collected 3409 | 238 366 75 250 185 725 776 408 24 202 . 160 . Remotely . | . . . . . . . . . . . . . Salvage Created 5591 | 161 703 213 . 304 1422 1566 756 . 339 . 75 52 Parts 300 | 12 52 5 . 19 73 96 19 . 18 . 3 3 Haulers Intercepted 14 | . 2 . . . 4 6 2 . . . . . Recyclers Shooed 13 | . 4 2 . . . 3 1 . 3 . . . Parts Field Recycled . | . . . . . . . . . . . . . Retrieved Matter . | . . . . . . . . . . . . . Parts Self-Destructed 9 | . . . . . . . . 4 2 . 3 . Prevented 18 | . . . . . . . . 2 12 . 4 . Kills | -11 -10 -10 -10 -9 -8 -8 -7 -7 -7 -7 -6 -6 ------- Run | Scr Mat Min Exi Min Mat Sto Fac Low Low Dat Pro Fac Combat Hostiles Destroyed 95 | . 13 17 . 8 23 23 1 . 6 . 3 1 Melee 1 | . . . . . . . . . . . 1 . Guns 58 | . 11 . . 6 18 23 . . . . . . Cannons 9 | . 2 1 . 1 5 . . . . . . . AOE 23 | . . 16 . 1 . . . . 4 . 1 1 Classes Destroyed 17 | 2 5 2 . 2 1 3 1 . 1 . . . Worker 10 | . 2 2 . 1 1 2 2 . . . . . Builder 4 | . . 1 . 1 1 . 1 . . . . . Tunneler 10 | 5 1 . . 2 . . 2 . . . . . Hauler 14 | . 2 . . . 4 6 2 . . . . . Recycler 10 | 1 . 1 . 1 . 1 6 . . . . . Operator 2 | . . . . . . 1 1 . . . . . Watcher 10 | . 3 . . . 3 2 2 . . . . . Swarmer 22 | . 3 . . 4 4 4 . . 4 . 3 . Grunt 30 | . 10 2 . 2 10 6 . . . . . . Brawler 2 | . . . . . . 2 . . . . . . Duelist 2 | . . . . 1 1 . . . . . . . Protector 1 | . . . . . . 1 . . . . . . Sentry 18 | . . . . 1 7 9 . . . . . 1 Hunter 2 | . . . . . 1 1 . . . . . . Programmer 2 | . . . . . . . 1 . 1 . . . Behemoth 1 | . . . . . . . . . 1 . . . Packrat 1 | . . . . . . . . . 1 . . . Assembled 15 | . . 15 . . . . . . . . . . Best Kill Streak 17 | 4 6 17 . 5 4 8 5 . 4 . 2 1 Combat Bots Only 14 | . 5 14 . 4 4 7 1 . 4 . 2 1 Max Kills in Single Turn 5 | 1 2 5 . 2 2 1 2 . 4 . 1 1 Gunslinging 1 | . 1 . . 1 1 . . . . . . . Exploded 4 | . . 4 . 1 . . . . 4 . 1 1 Melee 1 | . . . . . . . . . . . 1 . Uniques/NPCs Destroyed . | . . . . . . . . . . . . . Combat | -11 -10 -10 -10 -9 -8 -8 -7 -7 -7 -7 -6 -6 -------- Run | Scr Mat Min Exi Min Mat Sto Fac Low Low Dat Pro Fac Damage Taken 4169 | . 628 549 . 209 759 652 310 . 602 . 186 274 Core 602 | . 101 60 . 16 52 83 57 . 175 . 58 . Absorbed by Shields . | . . . . . . . . . . . . . Core Remaining (%) 65 | 100 . . . 29 . 75 . . . . 58 . Volleys Fired 324 | 18 59 15 . 24 87 71 18 . 24 . 6 2 Largest 2 | 2 2 2 . 2 2 2 1 . 1 . 2 1 Hottest 130 | 70 125 125 . 130 120 120 120 . 120 . 79 120 Shots Fired 528 | 36 110 24 . 26 145 134 18 . 24 . 9 2 Gun 383 | 36 84 2 . 9 122 128 . . . . 2 . Cannon 97 | . 25 2 . 15 23 6 18 . 6 . . 2 Launcher 47 | . . 20 . 2 . . . . 18 . 7 . Special 1 | . 1 . . . . . . . . . . . Kinetic 258 | 18 4 . . . 116 118 . . . . 2 . Thermal 183 | 18 76 4 . 24 29 6 18 . 6 . . 2 Explosive 22 | . . 20 . 2 . . . . . . . . Electromagnetic 65 | . 30 . . . . 10 . . 18 . 7 . Robot Hit Streak 21 | 6 21 5 . 18 9 12 6 . 12 . . 1 Robot Miss Streak 4 | 2 4 2 . 1 2 2 2 . . . 1 . Penetration Max 1 | . . . . . 1 1 . . . . . . Secondary Targets 12 | . 3 . . 1 4 4 . . . . . . Max Gunslinging Chain 1 | . 1 . . 1 1 1 . . . . . . Shots Hit Robots 323 | 24 68 10 . 15 84 81 26 . 13 . 1 1 Core Hits 219 | 9 34 44 . 17 43 49 12 . 8 . 2 1 Critical Hits 6 | . . . . 1 3 1 . . 1 . . . Critical Kills 3 | . . . . . 2 1 . . . . . . Critical Parts Destroyed 3 | . . . . 1 1 . . . 1 . . . Melee Attacks 39 | . . . . . . . 25 . 13 . 1 . Impact 25 | . . . . . . . 25 . . . . . Slashing 14 | . . . . . . . . . 13 . 1 . Piercing . | . . . . . . . . . . . . . Sneak Attacks 12 | . . . . . . . 10 . 1 . 1 . Combat Hostiles 1 | . . . . . . . . . . . 1 . Follow-up Attacks . | . . . . . . . . . . . . . Damage Inflicted 11509 | 249 1174 1543 . 959 2262 2117 1702 . 1020 . 326 157 Guns 4953 | 249 800 16 . 132 1876 1880 . . . . . . Cannons 1826 | . 200 35 . 468 373 147 294 . 263 . . 46 Explosions 2607 | . 150 1412 . 174 . . 119 . 416 . 225 111 Melee 1731 | . . . . . . . 1289 . 341 . 101 . Ramming 392 | . 24 80 . 185 13 90 . . . . . . Kinetic 3657 | 76 26 . . . 1795 1760 . . . . . . Thermal 2873 | 173 734 51 . 600 454 147 294 . 263 . . 157 Explosive 1586 | . . 1412 . 174 . . . . . . . . Electromagnetic 1270 | . 390 . . . . 120 119 . 416 . 225 . Impact 1289 | . . . . . . . 1289 . . . . . Slashing 442 | . . . . . . . . . 341 . 101 . Piercing . | . . . . . . . . . . . . . Highest Corruption 5 | . . . . . . 2 3 3 5 5 5 1 Average Corruption 3 | . . . . . . 2 2 3 4 5 5 1 Corruption Purged . | . . . . . . . . . . . . . Effects 55 | . . . . . . 5 10 8 16 2 14 . Message Errors 18 | . . . . . . 2 4 2 4 2 4 . Matter Fused 14 | . . . . . . . 1 4 3 . 6 . Heat Flow Errors 6 | . . . . . . 2 1 1 2 . . . Energy Discharges 5 | . . . . . . . 2 . 3 . . . Data Loss (minor) 5 | . . . . . . . 2 1 1 . 1 . Data Loss (major) 1 | . . . . . . . . . 1 . . . Misfires 2 | . . . . . . . . . . . 2 . Targeting Errors 3 | . . . . . . . . . 2 . 1 . Weapon Failures 1 | . . . . . . 1 . . . . . . Overload Shots . | . . . . . . . . . . . . . Overflow Damage 766 | . . 61 . 31 . . 512 . 137 . 24 1 Projectiles 112 | . . . . 8 . . 31 . 72 . . 1 Explosions 97 | . . 61 . 12 . . . . . . 24 . Melee 557 | . . . . 11 . . 481 . 65 . . . Knockbacks 10 | . . 1 . 1 . 2 6 . . . . . Impact 10 | . . 1 . 1 . 2 6 . . . . . Kinetic . | . . . . . . . . . . . . . Secondary . | . . . . . . . . . . . . . Self-Inflicted Damage 658 | . 3 364 . 29 . . 35 . . . . 227 Shots 16 | . 1 10 . 1 . . 2 . . . . 2 Rammed 31 | . 4 6 . 11 2 8 . . . . . . Targets Rammed 36 | . 5 8 . 13 2 8 . . . . . . Kicked . | . . . . . . . . . . . . . Crushed 5 | . 1 2 . 2 . . . . . . . . Highest Temperature 408 | 160 287 162 . 320 312 323 275 189 408 . 6 80 Average Temperature 83 | 67 78 42 . 106 80 58 141 105 136 . 4 59 Received Heat Transfer 999 | . 297 27 . 24 306 243 12 . 84 . 6 . Effects 4 | . . . . . 2 . 2 . . . . . Energy Bleed 3 | . . . . . 1 . 2 . . . . . Interference 1 | . . . . . 1 . . . . . . . Siege Activations . | . . . . . . . . . . . . . Robots Corrupted 2 | . . . . . . . . . 1 . 1 . Combat Hostiles 2 | . . . . . . . . . 1 . 1 . Parts Fried 12 | . . . . . . . 8 . 3 . 1 . Impact Corruptions 20 | . . . . 2 . . 18 . . . . . Robots Melted 2 | . . . . . . . 1 . 1 . . . Combat Hostiles 2 | . . . . . . . 1 . 1 . . . Parts Melted 10 | . . . . 1 2 2 2 . 3 . . . Heat Transferred 6058 | 518 1648 111 . 1336 985 320 530 . 480 . . 130 Parts Sabotaged . | . . . . . . . . . . . . . Parts Stolen . | . . . . . . . . . . . . . Parts Stripped . | . . . . . . . . . . . . . Power Chain Reactions 2 | . 1 . . . . . . . 1 . . . Missiles Intercepted . | . . . . . . . . . . . . . Alert | -11 -10 -10 -10 -9 -8 -8 -7 -7 -7 -7 -6 -6 ------- Run | Scr Mat Min Exi Min Mat Sto Fac Low Low Dat Pro Fac Peak Influence 520 | 30 182 52 . 95 294 520 228 . . . . 176 Initial 124 | . 19 2 . . 37 124 91 . . . . 81 Average 93 | 15 114 30 . 39 52 247 130 . . . . 84 Maximum Alert Level 2 | . . . . . 1 2 1 . . . . . Low Security (%) 87 | 100 100 100 . 100 93 50 81 . . . . 100 Level 1 8 | . . . . . 6 25 18 . . . . . Level 2 3 | . . . . . . 24 . . . . . . Level 3 . | . . . . . . . . . . . . . Level 4 . | . . . . . . . . . . . . . Level 5 . | . . . . . . . . . . . . . High Security . | . . . . . . . . . . . . . Max Security . | . . . . . . . . . . . . . Squads Dispatched 15 | . 4 . . . 5 3 3 . . . . . Investigation 3 | . 2 . . . . . 1 . . . . . Extermination 1 | . . . . . . . 1 . . . . . Reinforcement 5 | . 2 . . . 2 . 1 . . . . . Assault 2 | . . . . . . 2 . . . . . . Garrison 4 | . . . . . 3 1 . . . . . . Intercept . | . . . . . . . . . . . . . Construction Impeded . | . . . . . . . . . . . . . Haulers Reinforced 1 | . . . . . . . 1 . . . . . Stealth | -11 -10 -10 -10 -9 -8 -8 -7 -7 -7 -7 -6 -6 --------- Run | Scr Mat Min Exi Min Mat Sto Fac Low Low Dat Pro Fac Distress Signals 6 | . . . . 1 5 . . . . . . . Communications Jammed . | . . . . . . . . . . . . . Distress Signals . | . . . . . . . . . . . . . Times Spotted 151 | . 20 19 . 9 36 32 9 3 10 . 11 2 Peak Tracking Total 10 | . 4 10 . 4 5 5 2 3 4 . 3 2 Tactical Retreats 14 | . 1 3 . 1 1 1 . . 4 . 3 . Traps | -11 -10 -10 -10 -9 -8 -8 -7 -7 -7 -7 -6 -6 ------- Run | Scr Mat Min Exi Min Mat Sto Fac Low Low Dat Pro Fac Traps Triggered 5 | . . . . . . 1 3 . . . 1 . Indirectly 1 | . . . . . . . . . . . 1 . Trap Hack Attempts . | . . . . . . . . . . . . . Triggered . | . . . . . . . . . . . . . Disarmed . | . . . . . . . . . . . . . Reprogrammed . | . . . . . . . . . . . . . Reused . | . . . . . . . . . . . . . Traps Extracted . | . . . . . . . . . . . . . Installed . | . . . . . . . . . . . . . Triggered 3 | . . . . . . . . . . . 3 . Machines | -11 -10 -10 -10 -9 -8 -8 -7 -7 -7 -7 -6 -6 ---------- Run | Scr Mat Min Exi Min Mat Sto Fac Low Low Dat Pro Fac Machines Disabled 25 | . 1 1 . 1 5 7 8 . . . . 2 Max in Single Turn 2 | . 1 1 . 1 1 1 2 . . . . 2 Garrison Access 2 | . . . . . 1 . . . . . . 1 Machines Sabotaged . | . . . . . . . . . . . . . Garrisons Compromised . | . . . . . . . . . . . . . Overloaded Fab Kills . | . . . . . . . . . . . . . Fab Network Shutdowns . | . . . . . . . . . . . . . Hacking | -11 -10 -10 -10 -9 -8 -8 -7 -7 -7 -7 -6 -6 --------- Run | Scr Mat Min Exi Min Mat Sto Fac Low Low Dat Pro Fac Machines Accessed 56 | . 9 . 1 . 13 11 14 2 . 4 1 1 Terminals 33 | . 6 . . . 9 10 7 . . . 1 . Fabricators 4 | . . . . . . . 4 . . . . . Repair Stations 6 | . 1 . . . 2 1 2 . . . . . Recycling Units 3 | . 2 . . . . . 1 . . . . . Scanalyzers 1 | . . . . . 1 . . . . . . . Garrison Access 2 | . . . . . 1 . . . . . . 1 Total Hacks 166 | . 36 . 1 . 39 27 29 7 . 25 1 1 Successful 111 | . 22 . 1 . 25 15 14 7 . 25 1 1 Failed 54 | . 13 . . . 14 12 15 . . . . . Catastrophic 8 | . 1 . . . 1 1 5 . . . . . Database Lockouts 1 | . 1 . . . . . . . . . . . Manual 76 | . 30 . 1 . 25 9 11 . . . . . Terminals 101 | . 30 . . . 31 23 16 . . . 1 . Fabricators 8 | . . . . . . . 8 . . . . . Repair Stations 14 | . 2 . . . 4 4 4 . . . . . Recycling Units 5 | . 4 . . . . . 1 . . . . . Scanalyzers 3 | . . . . . 3 . . . . . . . Garrison Access 2 | . . . . . 1 . . . . . . 1 Terminal Hacks 74 | . 14 . 1 . 14 9 3 7 . 25 1 . Record 18 | . . . . . . . . 6 . 11 1 . Part Schematic 7 | . 1 . . . . . . . . 6 . . Robot Schematic 5 | . . . . . . . . . . 5 . . Robot Analysis 4 | . 2 . . . 2 . . . . . . . Prototype ID Bank 12 | . 5 . . . 2 1 1 . . 3 . . Open Door 4 | . . . . . . 3 . 1 . . . . Branch Access Points 4 | . 1 . . . 2 . 1 . . . . . Terminal Index 3 | . 1 . . . 1 1 . . . . . . Repair Station Index 1 | . . . . . . . 1 . . . . . Alert Level 2 | . 1 . . . . 1 . . . . . . Unreport Threat 5 | . 1 . . . 2 2 . . . . . . Locate Traps 4 | . 2 . . . 1 1 . . . . . . Reprogram Traps 1 | . . . . . 1 . . . . . . . Hauler Manifests 1 | . . . . . 1 . . . . . . . Zone Layout 2 | . . . . . 2 . . . . . . . EX-Prototype ID Bank 1 | . . . 1 . . . . . . . . . Fabricator Hacks 3 | . . . . . . . 3 . . . . . Load Schematic 1 | . . . . . . . 1 . . . . . Build 2 | . . . . . . . 2 . . . . . Repair Station Hacks 14 | . 2 . . . 4 4 4 . . . . . Scan Component 7 | . 1 . . . 2 2 2 . . . . . Repair 7 | . 1 . . . 2 2 2 . . . . . Recycling Unit Hacks . | . . . . . . . . . . . . . Scanalyzer 2 | . . . . . 2 . . . . . . . Insert Component 1 | . . . . . 1 . . . . . . . Analyze 1 | . . . . . 1 . . . . . . . Garrison Access Hacks 2 | . . . . . 1 . . . . . . 1 Seal Access 2 | . . . . . 1 . . . . . . 1 Unauthorized Hacks 16 | . 6 . . . 4 2 4 . . . . . Terminals 12 | . 4 . . . 4 2 2 . . . . . Track 1 | . 1 . . . . . . . . . . . Assimilate 2 | . . . . . 1 . 1 . . . . . Botnet 5 | . 2 . . . 1 1 1 . . . . . Disrupt 3 | . . . . . 2 1 . . . . . . Operators 1 | . 1 . . . . . . . . . . . Fabricators 1 | . . . . . . . 1 . . . . . Prioritize 1 | . . . . . . . 1 . . . . . Repair Stations . | . . . . . . . . . . . . . Recycling Units 3 | . 2 . . . . . 1 . . . . . Tunnel 3 | . 2 . . . . . 1 . . . . . Scanalyzers . | . . . . . . . . . . . . . Garrison Access . | . . . . . . . . . . . . . Data Cores Recovered 1 | . . . . . . 1 . . . . . . Used . | . . . . . . . . . . . . . Hacking Detections 40 | . 8 . . . 12 8 12 . . . . . Full Trace Events 1 | . . . . . . 1 . . . . . . Feedback Events . | . . . . . . . . . . . . . Feedback Blocked . | . . . . . . . . . . . . . Robot Schematics Acquired 5 | . . . . . . . . . . 5 . . Robots Built . | . . . . . . . . . . . . . Matter . | . . . . . . . . . . . . . Time . | . . . . . . . . . . . . . Total Robot Build Rating . | . . . . . . . . . . . . . Part Schematics Acquired 8 | . 1 . . . 1 . . . . 6 . . Parts Built 3 | . . . . . . . 3 . . . . . Matter 446 | . . . . . . . 446 . . . . . Time 223 | . . . . . . . 223 . . . . . Total Part Build Rating 19 | . . . . . . . 19 . . . . . Parts Repaired 7 | . 1 . . . 2 2 2 . . . . . Time 258 | . 32 . . . 76 76 74 . . . . . Parts Recycled . | . . . . . . . . . . . . . Recycled Matter . | . . . . . . . . . . . . . Retrieved Matter . | . . . . . . . . . . . . . Retrieved Components . | . . . . . . . . . . . . . Parts Scanalyzed 1 | . . . . . 1 . . . . . . . Part Schematics Acquired 1 | . . . . . 1 . . . . . . . Parts Damaged . | . . . . . . . . . . . . . Bothacking | -11 -10 -10 -10 -9 -8 -8 -7 -7 -7 -7 -6 -6 ------------ Run | Scr Mat Min Exi Min Mat Sto Fac Low Low Dat Pro Fac Used RIF Installer . | . . . . . . . . . . . . . Robots Hacked . | . . . . . . . . . . . . . Non-combat . | . . . . . . . . . . . . . Combat . | . . . . . . . . . . . . . Robot Hacks Applied . | . . . . . . . . . . . . . Relay Couplers Released . | . . . . . . . . . . . . . Robots Rewired . | . . . . . . . . . . . . . Allies Hacked . | . . . . . . . . . . . . . Hacks Repelled . | . . . . . . . . . . . . . Allies | -11 -10 -10 -10 -9 -8 -8 -7 -7 -7 -7 -6 -6 -------- Run | Scr Mat Min Exi Min Mat Sto Fac Low Low Dat Pro Fac Total Allies 9 | . . 1 . 3 1 2 1 . . . 1 . Largest Group 3 | . . 1 1 3 1 2 1 . . . 1 . Highest-Rated Group 94 | . . 31 31 40 10 62 26 . . . 94 . Highest-Rated Ally 94 | . . 31 31 16 10 31 26 . . . 94 . Total Orders . | . . . . . . . . . . . . . Ally Attacks 29 | . . . . 11 . 15 . . . . 3 . Total Damage 456 | . . . . 158 . 251 . . . . 47 . Kills 4 | . . . . 1 . 3 . . . . . . Allies Corrupted . | . . . . . . . . . . . . . Allies Melted 2 | . . . . 1 . . . . . . 1 . Intel | -11 -10 -10 -10 -9 -8 -8 -7 -7 -7 -7 -6 -6 ------- Run | Scr Mat Min Exi Min Mat Sto Fac Low Low Dat Pro Fac Robot Analysis Total 4 | . 2 . . . 2 . . . . . . . Derelict Logs Recovered 4 | . . . . 2 . . . 1 . . 1 . Drone Launches . | . . . . . . . . . . . . . Drone Recoveries . | . . . . . . . . . . . . . Exploration | -11 -10 -10 -10 -9 -8 -8 -7 -7 -7 -7 -6 -6 ------------- Run | Scr Mat Min Exi Min Mat Sto Fac Low Low Dat Pro Fac Turns Passed 15000 | 115 1383 810 763 1369 6103 2099 1002 233 617 38 358 110 Spaces Moved 7476 | 33 703 463 409 619 1174 924 1273 379 797 83 488 131 Core . | . . . . . . . . . . . . . Treads 3926 | 2 335 463 409 619 1174 924 . . . . . . Legs 3 | 3 . . . . . . . . . . . . Wheels 396 | 28 368 . . . . . . . . . . . Hover 3151 | . . . . . . . 1273 379 797 83 488 131 Flight . | . . . . . . . . . . . . . Fastest Speed 30 | 80 80 160 160 180 180 171 30 38 34 42 34 42 Average Speed 119 | 88 131 160 180 199 183 178 51 40 38 42 40 55 Slowest Speed 200 | 160 160 180 200 200 200 200 102 42 42 42 42 102 Overloaded Moves . | . . . . . . . . . . . . . Propulsion Burnouts . | . . . . . . . . . . . . . Robots Hopped . | . . . . . . . . . . . . . Cave-ins Triggered . | . . . . . . . . . . . . . Exploration Rate (%) 58 | 5 84 87 69 68 73 90 33 52 72 69 58 3 Regions Visited 12 Branch Regions 8 Pre-discovered Areas 6 | . 2 . . 1 . . 1 . . 1 1 . Known Exits Taken 7 | . 1 . . . 1 . 1 1 1 1 1 . Unknown Exits Taken 5 | 1 . 1 1 1 . 1 . . . . . . Scrap Searched 12 | . . 2 . 2 . . . 2 5 . 1 . Spaces Dug 20 | . 1 . . . 9 2 7 . 1 . . . Terrain Destroyed 228 | . 4 137 . 11 17 5 8 . 4 . . 42 Melee 3 | . . . . . . . 2 . 1 . . . Projectile 31 | . 1 . . 2 17 5 6 . . . . . AOE 194 | . 3 137 . 9 . . . . 3 . . 42 Terrain Rammed . | . . . . . . . . . . . . . Walls Destroyed . | . . . . . . . . . . . . . Machines Disabled . | . . . . . . . . . . . . . Actions | -11 -10 -10 -10 -9 -8 -8 -7 -7 -7 -7 -6 -6 --------- Run | Scr Mat Min Exi Min Mat Sto Fac Low Low Dat Pro Fac Total 12971 | 87 1045 502 434 719 4979 1236 1553 456 1070 86 637 167 Wait 4661 | 31 210 2 . 50 3648 146 164 73 202 . 124 11 Move 7464 | 32 702 462 408 618 1173 923 1272 378 796 82 487 131 Hop . | . . . . . . . . . . . . . Pick Up 134 | 1 18 5 15 5 19 20 25 2 12 1 2 9 Fast Attach 53 | . 11 . 3 . 8 14 9 . 1 1 5 1 Attach 40 | 2 3 3 2 3 5 7 9 . 3 . 1 2 Detach 13 | . 4 . . 2 2 3 . . 1 . 1 . Swap 65 | . 15 3 . 1 14 12 7 1 5 . 4 3 Drop 142 | 3 18 4 6 3 21 32 24 2 13 2 6 8 Fire 324 | 18 59 15 . 24 87 71 18 . 24 . 6 2 Melee 39 | . . . . . . . 25 . 13 . 1 . Ram . | . . . . . . . . . . . . . Kick . | . . . . . . . . . . . . . Crush 36 | . 5 8 . 13 2 8 . . . . . . Escape Stasis . | . . . . . . . . . . . . . Rewire . | . . . . . . . . . . . . . Trap . | . . . . . . . . . . . . . Miscellaneous . | . . . . . . . . . . . . . Route ------- -11/Scrapyard -10/Materials (discovered 3 exits: [*Mat x2] / *Min) -10/Mines (discovered 3 exits: [*Mat x2] / *Exi) -10/Exiles (discovered 2 exits: [*Min x2]) -9/Mines -8/Materials (discovered 2 exits: *Fac / *Sto) -8/Storage -7/Factory (discovered 3 exits: *Fac / *Low x2) -7/Lower Caves -7/Lower Caves (discovered 2 exits: *Fac / *Dat) -7/Data Miner -6/Proximity Caves -6/Factory (discovered 1 exit: Low) History --------- Turn | Location | Event 1 | -11/Scrapyard | Discovered new exit (range 3) 116 | -11/Scrapyard | Entered Materials 322 | -10/Materials | Build established: Mutant 501 | -10/Materials | Discovered new exit (range 7) 940 | -10/Materials | Discovered new exit (range 10) 1317 | -10/Materials | Repaired Imp. Treads 1418 | -10/Materials | Discovered new exit (range 14) 1438 | -10/Materials | Central database locked down 1445 | -10/Materials | Identified exit to Mines 1499 | -10/Materials | Entered Mines 1561 | -10/Mines | Found a damaged Exp. Sensor Array with a note attached 1565 | -10/Mines | Found Prototype Device 1594 | -10/Mines | Received a Rocket Launcher from a helpful Derelict 1621 | -10/Mines | Discovered new exit (range 12) 1680 | -10/Mines | Discovered new exit (range 3) 2134 | -10/Mines | Assembled infested the area 2175 | -10/Mines | Core integrity fell below 50% 2195 | -10/Mines | Destroyed 14 combat bots 2279 | -10/Mines | Received a Mining Laser from a helpful Derelict 2300 | -10/Mines | Deemed a non-threat by the Exiles lab entrance 2300 | -10/Mines | Discovered new exit (range 5) 2309 | -10/Mines | Entered Exiles 2309 | -10/Exiles | Accompanied by 1 ally 2330 | -10/Exiles | Discovered new exit (range 15) 2349 | -10/Exiles | Met 8R-AWN 2377 | -10/Exiles | Met EX-HEX 2420 | -10/Exiles | Met EX-BIN 2437 | -10/Exiles | Aligned with FarCom system 2439 | -10/Exiles | Given EX-Vault access code 2477 | -10/Exiles | Opened EX-Vault 2490 | -10/Exiles | Found Lightpack 2.0 2500 | -10/Exiles | Found Gui. Plasma Cannon 2509 | -10/Exiles | Found Skeleton Box 2553 | -10/Exiles | Warned to stay clear of 0b10 Research branches 2605 | -10/Exiles | Met EX-DEC 3056 | -10/Exiles | Discovered new exit (range 10) 3068 | -10/Exiles | Build established: Hauler-Mutant 3072 | -10/Exiles | Stole three prototypes: Gui. Plasma Cannon, Lightpack 2.0, Skeleton Box 3072 | -10/Exiles | Entered Mines 3204 | -9/Mines | Learned Materials trap positions 3234 | -9/Mines | Assisted by bots powering up and referring to "LRC-V3" 3998 | -9/Mines | Joined a pair of Derelicts in attacking an 0b10 outpost 4391 | -9/Mines | Discovered new exit (range 15) 4441 | -9/Mines | Entered Materials 4441 | -8/Materials | Evolved 4 slots: Propulsion x2, Utility x2 4442 | -8/Materials | Loaded intel: 11 trap records 5106 | -8/Materials | Identified exit to Storage 5123 | -8/Materials | Garrison activated, responded to threat 6225 | -8/Materials | Repaired Imp. Treads 6241 | -8/Materials | Discovered new exit (range 7) 10172 | -8/Materials | Identified Exp. Sensor Array 10278 | -8/Materials | Repaired Gauss Rifle 10544 | -8/Materials | Entered Storage 10776 | -8/Storage | Repaired Gauss Rifle 10809 | -8/Storage | Repaired Imp. Treads 11568 | -8/Storage | Met a pair of Derelict thieves 11587 | -8/Storage | Garrison activated, responded to threat 11650 | -8/Storage | Destroyed 7 combat bots 12400 | -8/Storage | Discovered new exit (range 7) 12643 | -8/Storage | Entered Factory 12643 | -7/Factory | Evolved 2 slots: Propulsion x2 12645 | -7/Factory | FarCom data flow suspended 12843 | -7/Factory | Identified exit to Lower Caves 12923 | -7/Factory | Fabricated Adv. Target Analyzer? 13054 | -7/Factory | Fabricated Imp. Focal Shield? 13074 | -7/Factory | Repaired Gauss Rifle 13136 | -7/Factory | Discovered new exit (range 16) 13563 | -7/Factory | Repaired Aerolev Unit 13645 | -7/Factory | Entered Lower Caves 13670 | -7/Lower Caves | Encountered a Warlord checkpoint 13819 | -7/Lower Caves | Learned location of 1 exit from Proximity Caves 13846 | -7/Lower Caves | Learned 8 Factory zone layouts 13846 | -7/Lower Caves | Learned 8 Research zone layouts 13846 | -7/Lower Caves | Learned Extension stockpile data 13846 | -7/Lower Caves | Learned Armory terminal intel 13846 | -7/Lower Caves | Learned Extension garrison access intel 13872 | -7/Lower Caves | Discovered new exit (range 12) 13877 | -7/Lower Caves | Identified exit to Lower Caves 13878 | -7/Lower Caves | Entered another Lower Caves area 13910 | -7/Lower Caves | Discovered new exit (range 11) 13917 | -7/Lower Caves | Identified exit to Factory 13975 | -7/Lower Caves | Spotted B-75 Beast 14365 | -7/Lower Caves | Destroyed B-75 Beast 14489 | -7/Lower Caves | Discovered new exit (range 11) 14493 | -7/Lower Caves | Identified exit to Data Miner 14495 | -7/Lower Caves | Entered Data Miner 14495 | -7/Data Miner | Discovered new exit (range 6) 14503 | -7/Data Miner | Met Data Miner 14512 | -7/Data Miner | Learned location of Section 7 (-2) 14512 | -7/Data Miner | Acquired the access code to Warlord's prototype stash 14520 | -7/Data Miner | Received God Mode back door access code from Data Miner 14533 | -7/Data Miner | Identified exit to Proximity Caves 14533 | -7/Data Miner | Entered Proximity Caves 14553 | -6/Proximity Caves | Escorted by Enhanced Grunt 14641 | -6/Proximity Caves | Attracted the attention of an 0b10 checkpoint 14891 | -6/Proximity Caves | Entered Factory 14891 | -6/Factory | Evolved 2 slots: Utility x2 14892 | -6/Factory | Identified exit to Lower Caves 15001 | -6/Factory | Self-destructed Last Messages --------------- 14907_ Acquired Med. Reactive Plating. 14909_ Dropped Humpback. 14909_ Acquired Hvy. Machine Gun. 14913_ Dropped Adv. Target Analyzer. 14913_ Dropped Adv. Heat Sink. 14914_ Acquired Humpback. 14923_ Dropped Med. Reactive Plating. 14924_ Acquired Adv. Heat Sink. 14943_ Dropped Lgt. Angular Momentum Engine. 14943_ Acquired Prototype Engine. 14943_ Identified F-cell Engine. 14974_ Connecting with Garrison Access... >>Seal Access door sealed. 14994_ C-30 ARC bursts open, deploying its payload. 14994_ P-60 Hacker unfolds itself. 14997_ Power Conduit explodes. 14997_ Y-54 Guardian destroyed. 14997_ Power Conduit explodes. 14999_ Destroyed Gravmag System. Map ----- +----------------------------------------------------+ | ## #??????????????????????? | | ######+#############+######### ###???????????????? | | ??# ^ ^ ?????????????? | | ??# ?????????????? | | ??# ?????????????? | | ??# ^"""""" ??????????????? | | ??# """""" ! ??????????????? | | ?######+########### """""" ###???????????????? | | ?# #???# """""" #?????????????????? | | ?# " " " #???# #?????????????????? | | ?# " " " #???# " " #?????????????????? | | ?# " " " #???# ""G"" #?????????????????? | | ?# "!!] " " #???# #?????????????????? | | ?# " ] " " #???# % #?????????????????? | | ?# " " " #???#########+#######??????????????? | | ?# " " " #??????# #??????????????? | | ?# " " " #??????# #??????????????? | | ?# " " " #??????# p #??????????????? | | ?# #??????#= +??????????????? | | ?# ] #????### ! #??????????????? | | ?##############????# ; #??????????????? | | ???????????????????# ; #??????????????? | | ???????????????????# ; /// #??????????????? | | ???????????????????# / ""#??????????????? | | ??????????????????##; / Y"#??????????????? | | ??????????????????# ; @ ""#??????????????? | | ??????????????????# ; [ #??????????????? | | ??????????????????## ;;;###??????????????? | | ???????????????????# ##????????????????? | | ???????????????????### # #####?????????????????? | | ?????????????????????#######?????????????????????? | | ?????????????????????????????????????????????????? | | ?????????????????????????????????????????????????? | | ?????????????????????????????????????????????????? | | ?????????????????????????????????????????????????? | | ?????????????????????????????????????????????????? | | ?????????????????????????????????????????????????? | | ?????????????????????????????????????????????????? | | ?????????????????????????????????????????????????? | | ?????????????????????????????????????????????????? | | ?????????????????????????????????????????????????? | | ?????????????????????????????????????????????????? | | ?????????????????????????????????????????????????? | | ?????????????????????????????????????????????????? | | ?????????????????????????????????????????????????? | | ?????????????????????????????????????????????????? | | ?????????????????????????????????????????????????? | | ?????????????????????????????????????????????????? | | ?????????????????????????????????????????????????? | | ?????????????????????????????????????????????????? | +----------------------------------------------------+ Best States ------------- Heat Dissipation 56 Energy Generation 19 Energy Capacity 500 Matter Stores 300 Matter Capacity 300 Sight Range 16 Robot Scan Range 30 Terrain Scan Density 10 Armor Coverage 450 Resistance: KI 30 Propulsion Shielding 66 Evasion (%) 58 Targeting Accuracy 6 Recoil Reduction 4 Item Schematics ----------------- Hcp. Storage Unit | -10/Materials | Hacked Lrn. Sensor Array | -8/Materials | Scanalyzed Combat Drone Bay | -7/Data Miner | Free Lgt. Regenerative Plating | -7/Data Miner | Free Cmb. Gravmag System | -7/Data Miner | Free Exp. Terrain Scanner | -7/Data Miner | Free Exp. Terrain Scan Processor | -7/Data Miner | Free Tactical Coordination Suite | -7/Data Miner | Free Robot Schematics ------------------ S-27 Virus | -7/Data Miner | Free G-50 Soldier | -7/Data Miner | Free G-67 Veteran | -7/Data Miner | Free H-66 Slayer | -7/Data Miner | Free I-36 Angel | -7/Data Miner | Free Fabricated ------------ Adv. Target Analyzer | x1 | -7/Factory | Preloaded Imp. Focal Shield | x2 | -7/Factory | Preloaded Alien Tech Used ----------------- None Achievements -------------- None Challenges ------------ None Game ------ Seed MetafieldSkeletonBlade Manual? 0 Play Time 01:54:44 Cumulative 292.9 hours Start 2021.10.02 @ 18:44:08 End 2021.10.04 @ 21:01:28 Sessions 3 Manual Loads 0 Difficulty Rogue Special Mode None Game No. 214 Rogue 214 Adventurer 0 Explorer 0 Win Type - Total 6 Types 5/0/1/0/0/0/0/0/0 Lore% 52 Gallery% 74 Achievement% 60 Wizard Run 0 Options --------- ASCII 0 Keyboard 0 Movement Numpad Keybinds 0 Fullscreen 2 Font 18/TerminusBold Map View 76x50 Tactical HUD 1 Map Filters NONE Filters NONE Steam 1 RUN: fccd7345-1c1f-44ac-9051-c0e1b5748bf8